fUSD/lending_fUSD_20240730
["ID","MTS","AMOUNT","RATE_DAILY","PERIOD"]
[333699970,1722372639087,-400.0,0.000107,3]
[333699971,1722372639099,-33411.3592,0.0001078,2]
[333699972,1722372639109,-1055.0,0.000108,3]
[333699973,1722372639118,-156.58821393,0.00010853,2]
[333699974,1722372639128,-156.58821393,0.00010868,2]
[333699975,1722372639139,-156.58821393,0.0001087,2]
[333699976,1722372639149,-3000.0,0.0001089,2]
[333699977,1722372639158,-800.0,0.00010895,2]
[333699978,1722372639168,-630.2187,0.000109,2]
[333699979,1722372639177,-951.082554,0.000109,2]
[333699980,1722372639186,-1000.0,0.000109,2]
[333699981,1722372639195,-1546.78971901,0.000109,2]
[333699982,1722372639205,-9190.48636605,0.000109,2]
[333699983,1722372639214,-621.0,0.00010999,2]
[333699984,1722372639223,-2253.666,0.00010999,2]
[333699985,1722372639233,-150.0,0.00010999,2]
[333699986,1722372639242,-1074.0,0.00010999,2]
[333699987,1722372639251,-150.0,0.00010999,2]
[333699988,1722372639260,-6735.63828631,0.00011,2]
[333699989,1722372639270,-2771951.59351204,0.00011,2]
[333699990,1722372639279,-691415.2338064,0.00011,2]
[333699991,1722372639288,-147404.4130767,0.00011,2]
[333699992,1722372639298,-175805.31416599,0.00011,2]
[333699997,1722372640573,-655.75999999,0.00011,2]
[333699998,1722372640600,-800.20287182,0.00011,2]
[333699999,1722372640615,-31971.56757775,0.00011,2]
[333700000,1722372640626,-3470.13415581,0.00011,2]
[333700015,1722372643398,-574.08981137,0.00011,2]
[333700016,1722372643409,-678.01,0.00011,2]
[333700017,1722372643436,-9315.0,0.00011,2]
[333700018,1722372643462,-1324.48,0.00011,2]
[333700019,1722372643523,-708.18,0.00011,2]
[333700040,1722372646323,-150.0,0.00010999,2]
[333700041,1722372646332,-150.0,0.00010999,2]
[333700042,1722372646342,-194.69317521,0.00010999,2]
[333700043,1722372646352,-246.40428621,0.00011,2]
[333700044,1722372646437,-1714.91797069,0.00011,2]
[333701206,1722372787080,158.28,0.0001337,30]
[333701207,1722373055716,427.13,8.219e-05,2]
[333701208,1722373545046,767.4,0.00027,120]
[333701209,1722373581099,405.77,8.219e-05,2]
[333701213,1722373649395,158.28,0.0001337,30]
[333701225,1722373831444,-1286.32241983,9.565e-05,2]
[333701226,1722373831504,-1241.91466336,9.565e-05,2]
[333701227,1722373831518,-341.48088377,9.565e-05,2]
[333701228,1722373831529,-1220.02203304,9.565e-05,2]
[333701229,1722373831538,-250.0,9.601e-05,2]
[333701230,1722373831547,-395.67045991,9.602e-05,2]
[333701231,1722373831559,-104.32954009,9.602e-05,2]
[333701232,1722373831568,-23900.0,9.608e-05,2]
[333701233,1722373831577,-4582.92,9.662e-05,2]
[333701234,1722373831586,-12028.86768816,9.662e-05,2]
[333701235,1722373831595,-150.0,9.691e-05,2]
[333701236,1722373831604,-880.0,9.755e-05,2]
[333701237,1722373831614,-600.0,9.9e-05,3]
[333701238,1722373831623,-212.56,9.949e-05,2]
[333701239,1722373831632,-678.3,9.961e-05,2]
[333701240,1722373831642,-212.56,9.998e-05,2]
[333701241,1722373831652,-150.0,9.999e-05,2]
[333701242,1722373831661,-499.99,0.0001,2]
[333701243,1722373831671,-7744.17,0.0001,2]
[333701244,1722373831681,-1250.0,0.0001,2]
[333701245,1722373831690,-1300.0,0.0001,3]
[333701246,1722373831831,-193.4,0.00010032,2]
[333701248,1722373831841,-1900.0,0.000101,3]
[333701249,1722373831850,-2600.0,0.000102,3]
[333701250,1722373831859,-3300.0,0.000103,3]
[333701251,1722373831869,-600.0,0.000104,3]
[333701252,1722373831878,-405.77,0.00010464,2]
[333701253,1722373831888,-600.0,0.000105,3]
[333701254,1722373831898,-600.0,0.000106,3]
[333701255,1722373831908,-1000.0,0.000107,2]
[333701256,1722373831917,-600.0,0.000107,3]
[333701257,1722373831927,-1184.0,0.000108,3]
[333701258,1722373831936,-594.67140183,0.00010862,2]
[333701259,1722373831945,-594.67140183,0.00010875,2]
[333701260,1722373831955,-594.67140183,0.00010883,2]
[333701261,1722373831964,-3000.0,0.0001089,2]
[333701262,1722373831973,-5005.357,0.000109,2]
[333701263,1722373831982,-1000.0,0.000109,2]
[333701264,1722373831992,-2628.3613,0.000109,2]
[333701265,1722373832001,-1192.0183,0.000109,2]
[333701266,1722373832010,-851.9813,0.000109,2]
[333701267,1722373832020,-347.947,0.000109,2]
[333701268,1722373832029,-1112.8407,0.000109,2]
[333701269,1722373832038,-341.18979234,0.000109,2]
[333701270,1722373832048,-12860.09334908,0.000109,2]
[333701271,1722373832057,-238.9723294,0.000109,2]
[333701272,1722373832066,-500.0,0.00010912,2]
[333701273,1722373832075,-200.0,0.00010959,2]
[333701274,1722373832085,-880.0,0.00010974,2]
[333701275,1722373832094,-990.43313748,0.00010997,2]
[333701276,1722373832103,-5379.9535734,0.00010998,2]
[333701277,1722373832113,-7622.0798999,0.00010998,2]
[333701278,1722373832122,-894.7092727,0.00010998,2]
[333701279,1722373832131,-1975.7427799,0.00010998,2]
[333701280,1722373832141,-150.0,0.00010999,2]
[333701281,1722373832150,-355668.05213705,0.00011,2]
[333701282,1722373832166,-4731.55964216,0.00011,2]
[333701283,1722373832178,-360.67999992,0.00011,2]
[333701284,1722373832189,-797620.25831514,0.00011,2]
[333701285,1722373832591,-13383.1972599,0.00011,2]
[333701286,1722373832602,-298.3,0.00011,2]
[333701287,1722373832614,-1549.74687682,0.00011,2]
[333701288,1722373832625,-4650.75459722,0.00011,2]
[333701289,1722373832636,-6558.09753364,0.00011,2]
[333701290,1722373832648,-561.51132701,0.00011,2]
[333701291,1722373832660,-475.12219449,0.00011,2]
[333701292,1722373832671,-2005.41,0.00011,2]
[333701293,1722373832690,-17579.4421642,0.00011,2]
[333701294,1722373832701,-872.67905712,0.00011,2]
[333701295,1722373832712,-2481.20419989,0.00011,2]
[333701296,1722373832723,-555.90330277,0.00011,2]
[333701297,1722373832735,-327.85685687,0.00011,2]
[333701298,1722373832746,-2585.10929238,0.00011,2]
[333701299,1722373832758,-1104.46932817,0.00011,2]
[333701303,1722373837514,-1107.2408442,0.00011,2]
[333701304,1722373837572,-3419.61632656,0.00011,2]
[333701305,1722373837586,-3520.38367342,0.00011,2]
[333701306,1722373837608,-614.60712979,0.00011,2]
[333701307,1722373837682,-3892.57385441,0.00011,2]
[333701308,1722373837746,-331.215,0.00011,2]
[333701448,1722373842510,-186327.58462999,0.00011,2]
[333701450,1722373842521,-10600.0,0.00011,2]
[333701452,1722373842530,-141872.41537701,0.00011,2]
[333701455,1722373842542,-33131.67436217,0.00011,2]
[333701482,1722373842999,-1620.40557737,0.00011,2]
[333701484,1722373843010,-2028.24217741,0.00011,2]
[333701485,1722373843022,-11222.92795268,0.00011,2]
[333701486,1722373843049,-6315.3454475,0.00011,2]
[333701487,1722373843060,-1206.31904542,0.00011,2]
[333701488,1722373843071,-16896.2586345,0.00011,2]
[333701489,1722373843097,-3283.5904435,0.00011,2]
[333701490,1722373843108,-368.5,0.00011,2]
[333701491,1722373843119,-492.275,0.00011,2]
[333701492,1722373843129,-1137.45899357,0.00011,2]
[333701553,1722373845619,-3166.50010804,0.00011,2]
[333701554,1722373845631,-339.525,0.00011,2]
[333701555,1722373845682,-962.39398821,0.00011,2]
[333701556,1722373845743,-1799.29203779,0.00011,2]
[333701557,1722373845858,-856.2321508,0.00011,2]
[333701571,1722374047227,100.54140714,8.653e-05,2]
[333701572,1722374047250,293.82859286,8.653e-05,2]
[333701573,1722374527702,374.65,8.519e-05,2]
[333701574,1722374555775,312.5891594,0.00027,120]
[333701626,1722375032722,-1707.36661304,0.0001,2]
[333701627,1722375032734,-882.40264769,0.0001,2]
[333701628,1722375032843,-833.79793316,0.0001,2]
[333701629,1722375032855,-318.86689986,0.0001,2]
[333701630,1722375032866,-2560.56590625,0.0001,2]
[333701631,1722375032875,-5809.68590988,0.0001,2]
[333701632,1722375032905,-3190.31409012,0.0001,2]
[333701633,1722375032915,-1977.0,0.0001,2]
[333701634,1722375032924,-300.0,0.0001,2]
[333701635,1722375032933,-244.66938002,0.000101,2]
[333701636,1722375032942,-2907.43652986,0.00010287,2]
[333701637,1722375032954,-331.9629089,0.00010287,2]
[333701638,1722375033024,-1913.12,0.00010287,2]
[333701639,1722375033035,-297.04785907,0.00010287,2]
[333701644,1722375037733,-2314.74547626,0.00010287,2]
[333701645,1722375038107,-4188.09722591,0.00010287,2]
[333701646,1722375038117,-150.0,0.00010384,2]
[333701647,1722375038127,-250.0,0.00010408,2]
[333701648,1722375038136,-2244.84,0.00010475,2]
[333701649,1722375038145,-202.59128858,0.00010488,2]
[333701650,1722375038155,-210.7627524,0.00010488,2]
[333701651,1722375038164,-522.21751293,0.00010488,2]
[333701652,1722375038173,-891.52770345,0.00010488,2]
[333701653,1722375038183,-544.48649279,0.00010488,2]
[333701654,1722375038193,-414.35884819,0.00010488,2]
[333701655,1722375038202,-947.63704702,0.00010488,2]
[333701656,1722375038212,-525.98551091,0.00010488,2]
[333701657,1722375038222,-910.0,0.00010502,2]
[333701658,1722375038233,-374.65,0.00010783,2]
[333701659,1722375038243,-2543.79,0.00010783,2]
[333701660,1722375038253,-542.01,0.00010783,2]
[333701661,1722375038263,-12630.00000001,0.0001088,2]
[333701662,1722375038272,-31842.66885283,0.0001088,2]
[333701663,1722375038282,-2500.0,0.000109,2]
[333701664,1722375038291,-500.0,0.00010912,2]
[333701665,1722375038301,-239.38544053,0.00010912,2]
[333701666,1722375038313,-260.60455947,0.00010912,2]
[333701667,1722375038323,-2683.73784355,0.00010998,2]
[333701668,1722375038335,-4103.00526145,0.00010998,2]
[333701669,1722375038344,-4998.37289645,0.00010998,2]
[333701670,1722375038356,-3543.90018485,0.00010998,2]
[333701671,1722375038366,-150.0,0.00010999,2]
[333701673,1722375038375,-4999.61968467,0.00011,2]
[333701675,1722375038387,-1381.24087936,0.00011,2]
[333701676,1722375038444,-3166.04903559,0.00011,2]
[333701677,1722375038471,-30816.34456709,0.00011,2]
[333701678,1722375038480,-2462.54037302,0.00011,2]
[333701679,1722375038500,-2621.97314626,0.00011,2]
[333701680,1722375038512,-1967.99507819,0.00011,2]
[333701687,1722375039851,-394.59031842,0.00011,2]
[333701688,1722375039967,-418868.68107183,0.00011,2]
[333701689,1722375040029,-840.96512736,0.00011,2]
[333701690,1722375040099,-3363.1171214,0.00011,2]
[333701691,1722375040110,-881.21664269,0.00011,2]
[333701694,1722375042673,-367.69336575,0.00011,2]
[333701696,1722375042736,-752.79796392,0.00011,2]
[333701698,1722375042748,-1559.45168708,0.00011,2]
[333701700,1722375042759,-273.88727203,0.00011,2]
[333701701,1722375042799,-641.5247125,0.00011,2]
[333701702,1722375042810,-1732.275,0.00011,2]
[333701703,1722375042823,-4526.756931,0.00011,2]
[333701704,1722375042834,-2412.0,0.00011,2]
[333701705,1722375042898,-33128.84010026,0.00011,2]
[333701706,1722375042910,-3067.36856786,0.00011,2]
[333701707,1722375042922,-120871.63918981,0.00011,2]
[333701708,1722375042934,-423524.35692056,0.00011,2]
[333701709,1722375042946,-814.55264413,0.00011,2]
[333701710,1722375042957,-381.4185858,0.00011,2]
[333701711,1722375042969,-382.12258582,0.00011,2]
[333701712,1722375043036,-6400.89541296,0.00011,2]
[333701713,1722375043050,-8632.87567252,0.00011,2]
[333701715,1722375043064,-361.6920653,0.00011,2]
[333701716,1722375043093,-938.09435475,0.00011,2]
[333701717,1722375043106,-110654.12809905,0.00011,2]
[333701719,1722375043118,-503.19150413,0.00011,2]
[333701721,1722375043129,-921.36942476,0.00011,2]
[333701770,1722375045801,-304.85435309,0.00011,2]
[333701771,1722375045813,-650.09,0.00011,2]
[333701772,1722375045826,-5966.55757461,0.00011,2]
[333701773,1722375045875,-1074.62901472,0.00011,2]
[333701774,1722375045887,-46953.12839835,0.00011,2]
[333701775,1722375045899,-1138.03861514,0.00011,2]
[333701776,1722375045911,-882.94760634,0.00011,2]
[333701777,1722375045923,-33162.92785311,0.00011,2]
[333701778,1722375045935,-1793.87083348,0.00011,2]
[333701779,1722375045951,-7818.63174524,0.00011,2]
[333701780,1722375045963,-1674.76306231,0.00011,2]
[333701781,1722375045975,-51418.54451114,0.00011,2]
[333701782,1722375045986,-5551.06842863,0.00011,2]
[333701783,1722375045998,-1346.35809449,0.00011,2]
[333701784,1722375046010,-8027.63642451,0.00011,2]
[333701785,1722375046021,-2153.82061658,0.00011,2]
[333701786,1722375046034,-6094.7295972,0.00011,2]
[333701787,1722375046060,-718.1047832,0.00011,2]
[333701788,1722375046084,-898.99522388,0.00011,2]
[333701789,1722375046096,-289.78365456,0.00011,2]
[333701790,1722375046108,-269.6096277,0.00011,2]
[333701791,1722375046159,-1494.82037085,0.00011,2]
[333701792,1722375046171,-300.16333141,0.00011,2]
[333701793,1722375046183,-2007.07929185,0.00011,2]
[333701794,1722375046194,-361.43277495,0.00011,2]
[333701795,1722375046206,-283.51720375,0.00011,2]
[333701796,1722375046388,-975.37684225,0.00011,2]
[333701810,1722375163530,298.6,0.00027,120]
[333701818,1722375248013,8486.22,0.00025,60]
[333701819,1722375272655,388.92,8.388e-05,2]
[333701820,1722375353213,155.50533946,8.388e-05,2]
[333701821,1722375356028,200.8396271,8.388e-05,2]
[333701822,1722375361556,291.58113767,8.388e-05,2]
[333701827,1722375747359,369.47,8.219e-05,2]
[333701828,1722375828618,500.0,0.00027,120]
[333702074,1722376232304,-694.3434613,9.587e-05,2]
[333702075,1722376232313,-250.0,9.687e-05,2]
[333702076,1722376232323,-940.0,9.731e-05,2]
[333702077,1722376232333,-691.51,9.734e-05,2]
[333702078,1722376232343,-300.0,9.799e-05,2]
[333702079,1722376232352,-3760.26391714,9.8e-05,2]
[333702104,1722376238089,-1145.8209955,9.8e-05,2]
[333702106,1722376240106,-2127.10253255,9.8e-05,2]
[333702111,1722376240698,-2656.70565481,9.8e-05,2]
[333702112,1722376240708,-150.0,9.821e-05,2]
[333702113,1722376240717,-278.47660936,9.888e-05,2]
[333702114,1722376240727,-700.0,9.9e-05,3]
[333702115,1722376240737,-150.0,9.973e-05,2]
[333702116,1722376240747,-1250.0,0.0001,2]
[333702117,1722376240757,-1400.0,0.0001,3]
[333702118,1722376240767,-198.8,0.00010082,2]
[333702119,1722376240777,-2200.0,0.000101,3]
[333702120,1722376240786,-1353.01,0.00010123,2]
[333702121,1722376240797,-492.8296563,0.00010167,2]
[333702122,1722376240810,-947.63704702,0.00010167,2]
[333702123,1722376240819,-2900.0,0.000102,3]
[333702124,1722376240829,-3600.0,0.000103,3]
[333702125,1722376240838,-700.0,0.000104,3]
[333702126,1722376240848,-369.47,0.00010465,2]
[333702127,1722376240859,-700.0,0.000105,3]
[333702128,1722376240868,-5616.0,0.0001053,2]
[333702129,1722376240877,-700.0,0.000106,3]
[333702130,1722376240887,-700.0,0.000107,3]
[333702131,1722376240896,-420.0,0.00010779,2]
[333702132,1722376240906,-1100.0,0.000108,3]
[333702133,1722376240916,-11651.28405092,0.0001089,2]
[333702134,1722376240926,-7666.6504,0.000109,2]
[333702135,1722376240936,-1000.0,0.000109,2]
[333702136,1722376240946,-338.7468,0.000109,2]
[333702137,1722376240955,-492.003,0.000109,2]
[333702138,1722376240964,-159.00411161,0.000109,2]
[333702139,1722376240977,-170.59489617,0.000109,2]
[333702140,1722376240986,-940.0,0.00010947,2]
[333702141,1722376240995,-7926.376735,0.00010998,2]
[333702142,1722376241004,-1388.4892838,0.00010998,2]
[333702143,1722376241015,-4532.246,0.00010999,2]
[333702144,1722376241024,-5124.0,0.00010999,2]
[333702145,1722376241034,-22455.755,0.00010999,2]
[333702146,1722376241044,-150.0,0.00010999,2]
[333702147,1722376241057,-73652.33328443,0.00011,2]
[333702148,1722376241066,-14160.64121028,0.00011,2]
[333702153,1722376244707,-369.12270208,0.00011,2]
[333702154,1722376244719,-656.86101804,0.00011,2]
[333702155,1722376244730,-664.8555461,0.00011,2]
[333702156,1722376244749,-305.47863659,0.00011,2]
[333702157,1722376244782,-32933.87196871,0.00011,2]
[333702158,1722376244795,-567.63859501,0.00011,2]
[333702159,1722376244840,-1134.31999994,0.00011,2]
[333702160,1722376244852,-912.45,0.00011,2]
[333702161,1722376244863,-361.64071257,0.00011,2]
[333702162,1722376244896,-404.34576589,0.00011,2]
[333702163,1722376244907,-1114.98776206,0.00011,2]
[333702164,1722376244946,-6743.53679999,0.00011,2]
[333702170,1722376246042,-829.727047,0.00011,2]
[333702171,1722376246055,-740.40033588,0.00011,2]
[333702172,1722376246066,-298.66236919,0.00011,2]
[333702173,1722376246083,-6998.15771474,0.00011,2]
[333702174,1722376246094,-467.75125298,0.00011,2]
[333702175,1722376246105,-321.8,0.00011,2]
[333702176,1722376246116,-534.2922018,0.00011,2]
[333702177,1722376246207,-453.46218221,0.00011,2]
[333702178,1722376246220,-344.849717,0.00011,2]
[333702179,1722376246231,-387.7317709,0.00011,2]
[333702180,1722376246256,-544.4382752,0.00011,2]
[333702181,1722376246267,-257.8762731,0.00011,2]
[333702182,1722376246278,-6389.950392,0.00011,2]
[333702183,1722376246289,-310.531547,0.00011,2]
[333702184,1722376246311,-371.88291753,0.00011,2]
[333702185,1722376246323,-1324.8,0.00011,2]
[333702186,1722376246334,-611.967,0.00011,2]
[333702187,1722376246349,-623.04947874,0.00011,2]
[333702189,1722376246360,-1919.57705919,0.00011,2]
[333702191,1722376246371,-418.84953567,0.00011,2]
[333702192,1722376246382,-445.78027732,0.00011,2]
[333702306,1722376309434,2806.2,0.00025,60]
[333702307,1722376511959,200.0,0.00027,120]
[333702308,1722376521107,2063.0,0.00027,120]
[333702309,1722376749474,383.08,8.219e-05,2]
[333702310,1722377230981,363.92,8.219e-05,2]
[333702336,1722377438104,-362.95395797,9.283e-05,2]
[333702337,1722377438324,-591.4607645,9.283e-05,2]
[333702338,1722377438336,-1901.20224488,9.283e-05,2]
[333702339,1722377438363,-1109.20886868,9.283e-05,2]
[333702340,1722377438399,-376.40100692,9.283e-05,2]
[333702341,1722377438410,-15305.66315705,9.283e-05,2]
[333702342,1722377438419,-672.4,9.283e-05,2]
[333702343,1722377438430,-250.0,9.327e-05,2]
[333702344,1722377438439,-2169.32,9.381e-05,2]
[333702345,1722377438449,-284.4,9.512e-05,2]
[333702346,1722377438459,-200.0,9.547e-05,2]
[333702347,1722377438468,-500.0,9.548e-05,2]
[333702348,1722377438477,-564.0,9.566e-05,2]
[333702349,1722377438488,-1368.43,9.587e-05,2]
[333702350,1722377438498,-423.95,9.67e-05,2]
[333702351,1722377438507,-436.0,9.693e-05,2]
[333702352,1722377438517,-201.34,9.734e-05,2]
[333702353,1722377438526,-165.21,9.889e-05,2]
[333702354,1722377438537,-200.0,9.9e-05,3]
[333702355,1722377438547,-165.21,9.913e-05,2]
[333702356,1722377438556,-165.21,9.938e-05,2]
[333702357,1722377438566,-1250.0,0.0001,2]
[333702358,1722377438576,-500.0,0.0001,3]
[333702359,1722377438585,-2319.76,0.00010095,2]
[333702360,1722377438730,-800.0,0.000101,3]
[333702361,1722377438740,-338.22,0.00010192,2]
[333702362,1722377438749,-1100.0,0.000102,3]
[333702363,1722377438759,-150.0,0.00010299,2]
[333702364,1722377438769,-1400.0,0.000103,3]
[333702365,1722377438778,-200.0,0.000104,3]
[333702366,1722377438787,-363.92,0.00010446,2]
[333702367,1722377438796,-352.625,0.00010449,2]
[333702368,1722377438807,-200.0,0.000105,3]
[333702369,1722377438816,-200.0,0.000106,3]
[333702370,1722377438825,-200.0,0.000107,3]
[333702371,1722377438836,-5676.0,0.00010721,2]
[333702372,1722377438846,-545.321,0.00010721,2]
[333702373,1722377438855,-1898.156,0.00010721,2]
[333702374,1722377438864,-19519.55010979,0.00010721,2]
[333702375,1722377439101,-17841.06189021,0.00010721,2]
[333702376,1722377439111,-150.0,0.00010721,2]
[333702378,1722377439121,-564.0,0.00010762,2]
[333702380,1722377439130,-6330.0609,0.000108,2]
[333702382,1722377439139,-259.5642,0.000108,2]
[333702383,1722377439149,-1000.0,0.000108,3]
[333702385,1722377439158,-13754.24462794,0.0001089,2]
[333702387,1722377439169,-2857.09224411,0.0001089,2]
[333702491,1722377440295,-1641.30252,0.0001089,2]
[333702493,1722377440307,-3017.256,0.0001089,2]
[333702496,1722377440319,-2880.424834,0.0001089,2]
[333702499,1722377440346,-303.27304,0.0001089,2]
[333702504,1722377440383,-17965.72626211,0.0001089,2]
[333702506,1722377440395,-886.05188537,0.0001089,2]
[333702508,1722377440407,-362.572002,0.0001089,2]
[333702510,1722377440418,-29574.57782437,0.0001089,2]
[333702519,1722377440498,-329.23499998,0.0001089,2]
[333702522,1722377440510,-35902.69645705,0.0001089,2]
[333702582,1722377443202,-1075.54730307,0.0001089,2]
[333702584,1722377443211,-3000.0,0.0001089,2]
[333702585,1722377443220,-1000.0,0.00010899,2]
[333702586,1722377443230,-158.08417684,0.00010899,2]
[333702587,1722377443239,-158.0841768,0.00010899,2]
[333702588,1722377443249,-158.0841768,0.00010899,2]
[333702589,1722377443258,-158.0841768,0.00010899,2]
[333702590,1722377443268,-158.0841768,0.00010899,2]
[333702591,1722377443277,-158.0841768,0.00010899,2]
[333702592,1722377443286,-3969.9594,0.000109,2]
[333702593,1722377443296,-4269.41675809,0.000109,2]
[333702594,1722377443307,-3267.60000022,0.000109,2]
[333702595,1722377443318,-15038.510525,0.000109,2]
[333702596,1722377443343,-1975.97501669,0.000109,2]
[333702597,1722377443353,-500.0,0.000109,2]
[333702598,1722377443366,-43189.54899551,0.000109,2]
[333702599,1722377443428,-3034.96957121,0.000109,2]
[333702869,1722377446308,-6256.73050416,0.000109,2]
[333702873,1722377446347,-1301.33763081,0.000109,2]
[333702894,1722377446563,-2721.31639831,0.000109,2]
[333702896,1722377446572,-10000.0,0.000109,2]
[333702898,1722377446582,-761.8685,0.000109,2]
[333702900,1722377446591,-162.30891772,0.000109,2]
[333702901,1722377446602,-166.7541308,0.000109,2]
[333702902,1722377446612,-158.0841768,0.000109,2]
[333702903,1722377446621,-524.50618302,0.000109,2]
[333702904,1722377446631,-436.0,0.00010905,2]
[333702905,1722377446641,-7284.3932718,0.00010998,2]
[333702906,1722377446651,-8084.7903397,0.00010998,2]
[333702907,1722377446660,-150.0,0.00010999,2]
[333702908,1722377446670,-450.0,0.00010999,2]
[333702909,1722377446679,-150.0,0.00010999,2]
[333702910,1722377446689,-2383.0,0.00010999,2]
[333702911,1722377446698,-445.0,0.00010999,2]
[333702912,1722377446708,-810.0,0.00010999,2]
[333702913,1722377446720,-321.041,0.00010999,2]
[333702914,1722377446730,-550.0,0.00010999,2]
[333702915,1722377446739,-3284.0,0.00010999,2]
[333702916,1722377446749,-1220.97535518,0.00010999,3]
[333702917,1722377446759,-1220.97535518,0.00010999,3]
[333702919,1722377446769,-1220.97535517,0.00010999,3]
[333702921,1722377446778,-106086.75241688,0.00011,2]
[333702923,1722377446788,-271185.69212604,0.00011,2]
[333702925,1722377446800,-896.1847932,0.00011,2]
[333702929,1722377446831,-5114.97780404,0.00011,2]
[333702931,1722377446842,-663.41853,0.00011,2]
[333703096,1722377468576,10000.0,0.00027,120]
[333703099,1722377485879,10000.0,0.00027,120]
[333703100,1722377510956,7810.0,0.00027,120]
[333703102,1722377633496,1000.0,0.00027,120]
[333703103,1722377645736,1000.0,0.00025,60]
[333703107,1722377811301,376.74,8.612e-05,2]
[333703108,1722378012269,500.0,0.00027,120]
[333703109,1722378058313,500.0,0.00027,120]
[333703110,1722378206028,155.0,9e-05,2]
[333703111,1722378356173,4318.15470095,6.94e-05,2]
[333703112,1722378402642,357.9,8.231e-05,2]
[333703159,1722378632333,-250.0,9.908e-05,2]
[333703160,1722378632343,-661.6,9.914e-05,2]
[333703161,1722378632352,-1009.62360554,0.0001,15]
[333703162,1722378632362,-789.99232965,0.0001,2]
[333703163,1722378632383,-451.63886766,0.0001,2]
[333703164,1722378632402,-4982.1901667,0.0001,2]
[333703165,1722378632414,-208.12474392,0.0001,2]
[333703166,1722378632425,-173.15774171,0.0001,2]
[333703167,1722378632435,-1092.69,0.00010025,2]
[333703168,1722378632444,-300.0,0.00010302,2]
[333703169,1722378632456,-300.0,0.00010302,2]
[333703170,1722378632466,-338.4,0.00010303,2]
[333703171,1722378632476,-522.21751293,0.00010439,2]
[333703172,1722378632485,-870.18642818,0.00010439,2]
[333703173,1722378632495,-947.63704702,0.00010439,2]
[333703174,1722378632504,-357.9,0.00010495,2]
[333703175,1722378632513,-1109.75,0.000105,2]
[333703176,1722378632523,-150.0,0.00010699,2]
[333703177,1722378632532,-600.0,0.000107,2]
[333703178,1722378632542,-834.15,0.000107,2]
[333703179,1722378632551,-420.42,0.000107,2]
[333703180,1722378632561,-420.42,0.000107,2]
[333703181,1722378632570,-834.15,0.000107,2]
[333703182,1722378632580,-356.02,0.000107,2]
[333703183,1722378632590,-356.02,0.000107,2]
[333703184,1722378632599,-834.15,0.000107,2]
[333703185,1722378632608,-420.42,0.000107,2]
[333703186,1722378632617,-420.42,0.000107,2]
[333703187,1722378632626,-151.6,0.000107,2]
[333703188,1722378632635,-834.15,0.000107,2]
[333703189,1722378632645,-499.99,0.000107,2]
[333703190,1722378632654,-920.32059951,0.000107,2]
[333703191,1722378632663,-215.08383658,0.0001072,2]
[333703192,1722378632673,-2806.03072428,0.0001072,2]
[333703193,1722378632682,-804.07718678,0.00010741,2]
[333703194,1722378632692,-1638.90014625,0.00010797,2]
[333703195,1722378632701,-473.7199967,0.000108,2]
[333703196,1722378632711,-1143.5919,0.000108,2]
[333703197,1722378632720,-1036090.89558447,0.000108,2]
[333703198,1722378632731,-2470.24297497,0.000108,2]
[333703199,1722378632893,-215809.91223655,0.000108,2]
[333703200,1722378632907,-521.44331218,0.000108,2]
[333703201,1722378632919,-1528.35103245,0.000108,2]
[333703202,1722378632931,-615.77052,0.000108,2]
[333703203,1722378632942,-496.77,0.000108,2]
[333703204,1722378632953,-5089.15586786,0.000108,2]